bitfinex/quotes_ETHUSD_20241124
["timestamp","ask_amount","ask_price","bid_price","bid_amount"]
[1732473143749,3.01069,3321.5,3320.8,3.01129]
[1732473145085,3.01069,3321.5,3320.9,3.01122]
[1732473145464,0.7707,3321.6,3321.1,3.01098]
[1732473145994,0.7707,3321.6,3321.3,3.01078]
[1732473146200,0.7707,3321.6,3321.4,3.01071]
[1732473146354,0.7707,3321.6,3320.5,0.7524]
[1732473146355,0.7707,3321.6,3321.0,3.01114]
[1732473146552,0.8289,3321.9,3321.6,3.01058]
[1732473146875,0.8289,3321.9,3320.9,0.7547]
[1732473146876,0.8289,3321.9,3321.4,3.0107]
[1732473147085,0.8289,3321.9,3321.5,3.01064]
[1732473147460,0.8289,3321.9,3321.6,3.01059]
[1732473148071,0.8289,3321.9,3321.4,3.01071]
[1732473148392,0.8289,3321.9,3321.5,3.01062]
[1732473148756,0.8289,3321.9,3321.3,3.01083]
[1732473148957,0.8289,3321.6,3320.3,0.7547]
[1732473149157,3.83949,3321.6,3320.8,3.01125]
[1732473149582,0.8289,3321.6,3320.8,3.01125]
[1732473149801,0.8289,3321.6,3321.0,3.01105]
[1732473150104,0.8289,3321.6,3320.8,3.01125]
[1732473150263,0.8289,3321.5,3320.8,3.01125]
[1732473150463,0.8289,3321.5,3320.9,3.01123]
[1732473150687,0.8289,3321.5,3321.0,3.01112]
[1732473151102,0.8289,3321.5,3320.5,3.0]
[1732473151269,0.8289,3321.5,3320.8,3.0113]
[1732473151592,0.8289,3321.5,3320.6,3.01147]
[1732473151805,3.01078,3321.4,3320.4,3.01166]
[1732473152030,3.83996,3321.1,3320.4,3.01166]
[1732473152601,3.0113,3320.9,3320.2,3.01186]
[1732473152902,3.84022,3320.8,3320.0,3.01198]
[1732473153204,3.84022,3320.8,3319.9,3.0121]
[1732473153205,3.84022,3320.8,3320.1,3.01195]
[1732473153505,4.224242,3320.8,3320.1,3.01195]
[1732473153674,1.212922,3320.8,3320.2,3.01184]
[1732473153881,0.8289,3320.8,3320.2,3.01184]
[1732473154697,0.8289,3320.8,3320.0,3.01203]
[1732473154910,0.8289,3320.8,3320.2,3.01178]
[1732473155205,0.8289,3320.8,3320.4,3.01162]
[1732473155608,0.8289,3320.8,3320.5,3.01156]
[1732473155927,0.8289,3321.3,3320.8,3.0113]
[1732473156201,0.8289,3321.3,3321.0,3.01108]
[1732473156412,0.8289,3321.8,3321.0,3.01108]
[1732473156604,1.33216146,3321.8,3321.0,3.01108]
[1732473156975,1.33216146,3321.8,3321.2,3.01095]
[1732473157275,1.33216146,3321.8,3321.0,3.01108]
[1732473157276,4.34258146,3321.8,3321.0,3.01108]
[1732473157481,3.94801961,3321.7,3321.0,3.01108]
[1732473157888,3.94801961,3321.7,3320.8,3.01129]
[1732473158099,3.8395,3321.6,3320.8,3.01127]
[1732473158283,0.8289,3321.6,3320.8,3.01127]
[1732473158484,0.47769196,3321.5,3321.0,3.01108]
[1732473159081,0.47769196,3321.5,3320.5,6.02318]
[1732473159374,0.8289,3321.6,3321.0,3.01107]
[1732473160585,0.8289,3321.6,3320.5,3.01155]
[1732473160786,0.8289,3321.6,3321.5,3.01068]
[1732473160987,0.8289,3321.6,3321.0,0.7547]
[1732473160988,0.8289,3321.9,3321.1,3.01103]
[1732473161515,0.8289,3321.9,3321.2,3.01095]
[1732473161711,0.8289,3321.9,3321.5,3.01061]
[1732473162382,0.8289,3321.9,3321.4,3.01071]
[1732473162576,0.8289,3321.9,3321.5,3.01067]
[1732473162776,0.8289,3321.9,3321.6,3.01054]
[1732473163173,0.8289,3321.9,3321.7,3.01049]
[1732473163588,0.8289,3321.9,3321.8,3.01041]
[1732473164001,0.8289,3321.9,3321.6,3.01052]
[1732473164314,0.8289,3321.9,3321.7,3.0105]
[1732473164561,0.8289,3321.9,3321.3,3.01083]
[1732473164921,0.8289,3321.9,3321.5,3.01064]
[1732473165243,0.8289,3321.9,3321.3,3.01083]
[1732473165741,1.212806,3321.9,3321.5,3.01061]
[1732473165920,0.8289,3321.9,3321.3,6.02163]
[1732473166114,1.212804,3321.9,3321.3,3.0108]
[1732473166316,1.212804,3321.9,3321.1,3.01101]
[1732473166317,1.212804,3321.9,3321.4,3.01076]
[1732473166517,1.212804,3321.9,3321.5,3.01068]
[1732473167457,1.212804,3321.9,3321.5,3.01064]
[1732473167752,0.8289,3321.9,3321.6,3.01057]
[1732473168118,0.8289,3321.9,3321.5,3.01064]
[1732473168835,0.8289,3321.9,3321.6,3.01057]
[1732473169270,0.8289,3321.9,3321.3,3.01083]
[1732473169482,0.8289,3321.9,3321.4,3.01076]
[1732473169638,0.8289,3321.9,3321.5,3.01067]
[1732473171064,0.8289,3321.9,3321.7,3.01049]
[1732473171387,0.8289,3321.9,3321.8,3.01041]
[1732473171679,0.8289,3321.9,3321.7,3.01049]
[1732473173381,0.7805,3322.6,3321.2,0.03010428]
[1732473173587,0.7805,3322.6,3322.1,3.01007]
[1732473173891,0.7805,3322.6,3322.3,3.00994]
[1732473174249,0.7805,3322.6,3322.1,3.01007]
[1732473174642,0.7805,3322.6,3322.0,3.01021]
[1732473175159,0.7805,3322.6,3321.9,3.01031]
[1732473175488,0.28027746,3322.5,3322.0,3.01022]
[1732473176593,0.28027746,3322.5,3322.1,3.01013]
[1732473176759,0.28027746,3322.5,3322.2,3.01004]
[1732473177259,0.28027746,3322.5,3322.1,3.01013]
[1732473178162,0.28027746,3322.5,3322.2,3.01003]
[1732473178349,0.7805,3322.6,3322.2,3.01003]
[1732473178554,0.7805,3322.6,3322.1,3.01013]
[1732473179991,0.7805,3322.6,3321.9,3.01025]
[1732473180198,0.28027746,3322.5,3321.9,3.01025]
[1732473180751,0.28027746,3322.5,3322.1,3.01007]
[1732473181000,0.27027746,3322.5,3321.3,0.3006]
[1732473181156,0.27027746,3322.5,3321.9,3.01026]
[1732473181354,0.7805,3322.4,3321.7,6.02092]
[1732473181554,0.7805,3322.4,3321.9,3.01031]
[1732473181797,0.7805,3322.4,3322.0,3.01022]
[1732473182168,0.7805,3322.4,3322.0,3.01021]
[1732473183053,0.7805,3322.4,3321.9,3.01031]
[1732473183398,0.27027746,3322.5,3321.2,3.79662]
[1732473183399,2.0222746,3322.3,3321.6,3.01056]
[1732473183699,0.7805,3322.1,3321.6,3.01056]
[1732473183993,0.7805,3322.1,3321.3,0.3006]
[1732473184285,0.7805,3322.1,3321.7,3.01049]
[1732473184991,1.08100021,3322.1,3321.4,3.01072]
[1732473185153,1.08100021,3322.1,3321.5,3.01067]
[1732473185875,1.08100021,3322.1,3321.1,0.3006]
[1732473186094,0.7805,3322.1,3321.7,3.01043]
[1732473186273,0.7805,3322.1,3321.6,3.01057]
[1732473186673,0.7805,3322.1,3321.7,3.0105]
[1732473187189,0.7805,3322.1,3321.6,3.01057]
[1732473187387,0.7805,3322.1,3321.9,3.01031]
[1732473187587,0.7805,3322.1,3321.8,3.01034]
[1732473187764,0.7805,3322.1,3322.0,3.01023]
[1732473188314,0.7805,3322.1,3321.8,3.01034]
[1732473189102,0.7805,3322.1,3321.0,1.0863]
[1732473189409,0.7805,3322.1,3321.6,6.02108]
[1732473189589,0.7805,3322.1,3321.6,3.01052]
[1732473189772,0.7805,3322.1,3321.7,3.0105]
[1732473190191,0.7805,3322.1,3321.6,3.01052]
[1732473190503,0.7805,3322.1,3321.7,3.01049]
[1732473191020,0.758,3322.0,3321.4,3.01074]
[1732473192351,3.01033,3321.9,3321.2,3.01089]
[1732473192623,0.758,3321.7,3321.1,3.01098]
[1732473192789,3.76865,3321.6,3320.9,3.01122]
[1732473192998,0.758,3321.4,3320.8,3.0113]
[1732473194217,0.758,3321.4,3320.9,3.01123]
[1732473195038,0.758,3321.4,3321.0,3.01113]
[1732473195332,1.21224828,3321.4,3320.6,3.01147]
[1732473195533,0.758,3321.3,3320.6,3.01147]
[1732473195728,0.42230783,3321.2,3320.6,3.01147]
[1732473195938,3.76894,3321.3,3320.6,3.01144]
[1732473196633,3.76894,3321.3,3320.7,3.01141]
[1732473196811,0.758,3321.3,3320.9,3.01121]
[1732473197139,4.69448629,3321.3,3320.7,3.01137]
[1732473197319,0.46944863,3321.2,3320.7,3.01137]
[1732473197618,0.46944863,3321.2,3320.8,3.01124]
[1732473197782,0.758,3321.3,3321.0,3.01107]
[1732473198991,0.7732,3321.8,3321.2,3.01095]
[1732473199433,0.7732,3321.8,3321.5,3.01067]
[1732473199930,0.7732,3321.8,3321.3,3.0108]
[1732473200135,0.7732,3321.8,3321.2,3.01087]
[1732473200290,0.7732,3321.8,3321.4,3.01072]
[1732473200492,0.7732,3321.8,3321.0,0.0301071]
[1732473200836,0.7732,3321.8,3321.7,3.0105]
[1732473201131,0.7732,3321.8,3321.5,3.0106]
[1732473201287,0.7732,3321.8,3321.5,6.0212]
[1732473201693,0.7732,3322.1,3321.8,3.01036]
[1732473202224,0.7732,3322.1,3321.6,3.01052]
[1732473202733,0.7732,3322.1,3321.7,3.0105]
[1732473202927,1.35374346,3322.1,3321.7,3.0105]
[1732473203434,1.35374346,3322.1,3321.6,3.01059]
[1732473203931,1.31385809,3322.1,3321.8,3.01034]
[1732473204092,0.73331463,3322.1,3321.9,3.01031]
[1732473204292,0.73331463,3322.1,3321.8,3.01034]
[1732473205417,0.73331463,3322.1,3321.6,3.01057]
[1732473205616,0.73331463,3322.1,3321.7,3.0105]
[1732473205949,0.73331463,3322.1,3321.6,3.01057]
[1732473205950,0.73331463,3322.1,3321.8,3.01039]
[1732473206847,0.7507,3322.6,3322.0,3.01023]
[1732473207139,0.7507,3322.1,3321.6,3.01052]
[1732473207310,0.7507,3322.1,3321.7,3.01048]
[1732473207511,0.7507,3322.1,3321.8,3.01035]
[1732473208133,3.7507,3322.6,3321.6,0.8178]
[1732473208430,3.76039,3322.6,3321.9,3.01024]
[1732473208741,3.76039,3322.6,3322.0,3.01023]
[1732473209095,3.00985,3322.5,3321.8,3.01035]
[1732473209296,0.57826646,3322.5,3321.7,3.01046]
[1732473209603,0.57826646,3322.5,3322.0,3.01015]
[1732473210190,3.0,3323.1,3321.9,3.01026]
[1732473210191,0.7507,3323.0,3322.1,0.8178]
[1732473210380,0.7507,3323.0,3322.8,3.00944]
[1732473210538,0.7507,3323.0,3322.9,3.00941]
[1732473210938,0.7507,3323.0,3322.5,3.00976]
[1732473211137,0.7507,3323.0,3322.6,3.00962]
[1732473211389,3.76004,3323.0,3322.3,3.0099]
[1732473211589,0.376004,3322.9,3322.1,0.8178]
[1732473211884,3.76003,3323.0,3322.3,3.00992]
[1732473212047,3.76003,3323.0,3322.4,3.00986]
[1732473212246,0.7507,3323.0,3322.3,3.00993]
[1732473212476,0.7507,3323.0,3322.6,3.00967]
[1732473212961,0.7507,3323.0,3322.7,3.00959]
[1732473213486,0.7507,3323.0,3322.5,3.0097]
[1732473214068,1.126694,3323.0,3322.5,3.0097]
[1732473214458,1.126694,3323.0,3322.4,3.00985]
[1732473215059,4.136024,3323.0,3322.4,3.00985]
[1732473215383,3.76003,3323.0,3322.4,3.00985]
[1732473215556,3.76003,3323.0,3322.2,3.01003]
[1732473215889,3.76003,3323.0,3322.3,3.00995]
[1732473215890,3.00942,3322.9,3322.3,3.00995]
[1732473216100,3.385423,3322.9,3322.3,3.00995]
[1732473216656,3.385423,3322.9,3322.2,3.01004]
[1732473216657,3.00956,3322.8,3322.2,3.01004]
[1732473216856,4.0250613,3322.8,3322.2,3.01004]
[1732473217512,0.7507,3322.6,3322.0,3.60080248]
[1732473217660,3.76045,3322.6,3322.0,3.60080248]
[1732473217857,3.00979,3322.5,3322.0,3.60080248]
[1732473218103,3.76041,3322.6,3322.0,3.60080248]
[1732473218897,3.00978,3322.5,3321.7,0.3005]
[1732473219112,3.01003,3322.3,3321.7,0.3005]
[1732473219398,3.01003,3322.3,3320.8,5.34]
[1732473219399,3.01014,3322.1,3321.2,3.31142]
[1732473219569,3.76112,3321.8,3321.2,3.31142]
[1732473219771,3.01051,3321.7,3321.1,0.3005]
[1732473219959,3.76113,3321.8,3321.2,3.01095]
[1732473220164,4.438282,3321.8,3321.2,3.01095]
[1732473220408,1.427852,3321.8,3321.2,3.01095]
[1732473220582,0.7507,3321.8,3321.2,3.01095]
[1732473221504,3.76114,3321.8,3321.2,3.01095]
[1732473222200,0.7507,3321.8,3321.3,3.01086]
[1732473222558,0.7507,3321.8,3321.4,3.01071]
[1732473222963,0.7507,3321.8,3321.3,3.01086]
[1732473223707,0.7507,3321.8,3321.1,3.01104]
[1732473223913,1.126805,3321.8,3321.2,3.01095]
[1732473224216,0.7507,3321.8,3321.2,3.01095]
[1732473224411,0.7507,3321.8,3321.3,3.01086]
[1732473224985,3.76128,3321.7,3321.1,3.0]
[1732473225191,3.76128,3321.7,3321.1,6.01104]
[1732473225590,3.01062,3321.6,3320.9,3.0]
[1732473225792,3.01062,3321.6,3321.1,3.0]
[1732473226116,3.01062,3321.6,3321.1,6.01104]
[1732473226717,1.66770096,3321.7,3321.1,6.01104]
[1732473226885,4.67822096,3321.7,3321.1,6.01104]
[1732473227078,3.4785021,3321.6,3320.9,3.01117]
[1732473227617,3.01068,3321.5,3320.9,3.01117]
[1732473227825,3.01083,3321.4,3320.3,0.8178]
[1732473227982,0.7751,3321.3,3320.8,3.0113]
[1732473228322,0.7751,3321.3,3320.7,3.01134]
[1732473228493,0.7751,3321.3,3320.9,3.01121]
[1732473230524,0.7751,3321.3,3320.8,3.0113]
[1732473230912,0.7751,3321.3,3320.9,3.0112]
[1732473231229,0.7751,3321.3,3320.7,3.01134]
[1732473231433,3.78599,3321.3,3320.7,3.01139]
[1732473231598,4.465658,3321.3,3320.7,3.01139]
[1732473231782,1.454768,3321.3,3320.8,3.01128]
[1732473232001,0.7751,3321.3,3321.1,3.01103]
[1732473232428,0.7751,3321.3,3321.2,3.01095]
[1732473233109,0.7751,3321.8,3321.2,3.01093]
[1732473233412,3.01057,3321.7,3321.0,3.0111]
[1732473233585,3.01057,3321.7,3321.1,3.01099]
[1732473233793,0.42889295,3321.6,3321.2,3.0109]
[1732473234002,1.27835946,3321.8,3321.2,3.0109]
[1732473234686,1.27835946,3321.8,3321.4,3.01077]
[1732473235091,1.27835946,3321.8,3321.2,3.0109]
[1732473235427,0.63109541,3321.7,3321.3,3.01083]
[1732473235633,0.7751,3321.8,3321.4,3.01076]
[1732473235790,0.7751,3321.8,3321.3,3.01083]
[1732473236627,3.78552,3321.8,3321.3,3.01083]
[1732473236934,0.58077946,3321.7,3321.3,3.01083]
[1732473237244,0.7751,3321.8,3321.4,3.01072]
[1732473237836,0.7751,3321.8,3321.5,3.01068]
[1732473238040,0.7751,3321.8,3321.7,3.0105]
[1732473238192,3.83962,3322.4,3321.7,3.0105]
[1732473238532,3.83962,3322.4,3321.3,3.01083]
[1732473238533,3.01029,3322.0,3321.3,3.01083]
[1732473238733,0.8297,3321.8,3321.4,3.01076]
[1732473239232,3.84014,3321.8,3321.2,3.01094]
[1732473239738,0.8297,3321.5,3321.0,3.01108]
[1732473240000,0.8297,3321.5,3321.1,3.01104]
[1732473240205,0.8297,3321.5,3321.0,3.01108]
[1732473240694,0.8297,3321.5,3321.2,3.01087]
[1732473240868,0.8297,3321.5,3320.7,0.3005]
[1732473241403,0.8297,3321.5,3321.4,3.01077]
[1732473241571,3.01011,3322.2,3321.4,3.01077]
[1732473241767,1.4026172,3322.1,3321.6,3.01056]
[1732473242202,1.4026172,3322.1,3321.8,3.01034]
[1732473244015,1.4026172,3322.1,3322.0,3.01023]
[1732473244179,1.4026172,3322.1,3321.8,3.01034]
[1732473244891,1.4026172,3322.1,3321.9,3.0103]
[1732473245193,0.8297,3322.1,3322.0,3.01023]
[1732473247113,2.0222746,3322.7,3322.2,3.01005]
[1732473247114,0.7718,3322.5,3322.2,3.01005]
[1732473247348,0.7718,3322.5,3322.3,3.00988]
[1732473247480,0.7718,3322.5,3322.4,3.00987]
[1732473247672,3.00927,3323.1,3322.2,3.01002]
[1732473247673,0.7835,3323.1,3322.2,3.01002]
[1732473248003,0.7835,3323.1,3321.8,1.125]
[1732473248004,0.300927,3323.0,3322.4,3.0098]
[1732473248206,0.300927,3323.0,3321.8,1.125]
[1732473248207,0.7835,3323.1,3322.8,3.00948]
[1732473248415,0.7835,3323.1,3323.0,3.00932]
[1732473249312,0.7835,3323.1,3322.8,6.01892]
[1732473249468,0.7835,3323.1,3322.9,3.00939]
[1732473250308,0.7835,3323.1,3322.9,3.00938]
[1732473251400,0.7835,3323.1,3323.0,3.00932]
[1732473251598,0.7835,3323.1,3322.8,3.00945]
[1732473252416,5.8150346,3323.1,3322.4,3.00986]
[1732473253388,0.7835,3323.0,3322.0,3.01021]
[1732473253591,2.0222746,3323.1,3322.1,3.01006]
[1732473253592,0.7835,3322.6,3322.1,3.01006]
[1732473253883,3.79325,3322.6,3321.9,3.01026]
[1732473254207,4.17256,3322.6,3321.9,3.01026]
[1732473254408,1.16281,3322.6,3321.5,0.7663]
[1732473254570,0.7835,3322.4,3321.7,3.01044]
[1732473255805,0.7835,3322.4,3321.9,3.0103]
[1732473256316,3.79337,3322.4,3321.7,3.01044]
[1732473256513,4.20455585,3322.4,3321.7,3.01044]
[1732473257043,4.20455585,3322.4,3321.8,3.01041]
[1732473257946,0.7835,3322.4,3322.1,3.01012]
[1732473258238,0.7835,3322.8,3322.5,3.00977]
[1732473258437,0.7835,3322.8,3322.1,3.01008]
[1732473258638,1.162792,3322.8,3322.0,0.7663]
[1732473258933,0.7835,3322.8,3322.4,3.00979]
[1732473259132,0.7835,3322.8,3322.0,0.7663]
[1732473259294,3.388962,3322.7,3322.0,3.01017]
[1732473259642,0.7835,3322.8,3322.0,3.01017]
[1732473259643,3.0097,3322.6,3322.0,3.01017]
[1732473260233,0.7835,3322.5,3321.8,3.01039]
[1732473260442,3.00997,3322.3,3321.7,3.01048]
[1732473260731,3.79333,3322.5,3321.8,3.01033]
[1732473260935,3.00989,3322.4,3321.8,3.01033]
[1732473261091,3.00999,3322.3,3321.7,3.0105]
[1732473261291,3.71838575,3322.3,3321.7,3.0105]
[1732473261707,0.70839575,3322.3,3321.8,3.01039]
[1732473262029,0.70839575,3322.3,3321.6,3.01056]
[1732473262030,0.70839575,3322.3,3322.0,3.01021]
[1732473262220,1.06407746,3322.5,3322.0,3.01021]
[1732473262423,4.07385746,3322.5,3322.0,3.01021]
[1732473262621,1.06407746,3322.5,3322.0,3.01021]
[1732473262822,0.7835,3322.5,3322.1,3.01014]
[1732473263142,0.7835,3322.5,3322.3,3.00989]
[1732473264347,0.7835,3322.5,3322.1,3.01014]
[1732473265847,0.7835,3322.5,3322.2,3.01003]
[1732473266529,0.7835,3322.5,3322.1,3.01014]
[1732473266530,3.80092,3322.9,3322.3,3.00989]
[1732473267216,3.00951,3322.8,3322.1,6.79771]
[1732473267419,0.380101,3322.7,3322.2,3.01003]
[1732473267718,0.380101,3322.7,3322.3,3.0099]
[1732473268045,0.7915,3322.9,3322.5,3.00977]
[1732473268601,0.7915,3322.9,3322.6,3.00961]
[1732473268802,0.7915,3322.9,3322.7,3.00958]
[1732473269456,0.7915,3322.9,3322.5,3.00977]
[1732473269742,0.7915,3322.9,3322.6,3.00967]
[1732473270146,0.7915,3322.9,3322.5,3.00977]
[1732473270572,0.7915,3322.9,3322.6,3.00966]
[1732473273780,0.7915,3322.9,3322.4,6.01964]
[1732473274083,0.7915,3322.9,3322.5,3.00977]
[1732473274756,0.7915,3322.9,3322.3,3.00989]
[1732473275145,0.7915,3322.9,3322.4,3.00985]
[1732473275876,0.7915,3322.9,3322.6,3.00966]
[1732473276479,0.7915,3322.9,3322.4,6.01964]
[1732473276840,0.7915,3322.9,3322.5,3.00976]
[1732473277271,0.7915,3322.9,3322.4,3.00984]
[1732473277514,0.7915,3322.9,3322.5,3.00978]
[1732473278529,2.7912746,3323.1,3322.7,3.00954]
[1732473278686,0.769,3323.1,3322.7,3.00954]
[1732473278883,1.146808,3323.1,3322.7,3.00954]
[1732473279946,1.146808,3323.1,3322.6,3.00966]
[1732473280394,0.769,3323.1,3322.6,3.00966]
[1732473280900,0.769,3323.1,3322.7,3.00956]
[1732473281398,0.769,3323.1,3322.8,3.00943]
[1732473281611,0.769,3323.1,3322.9,3.00939]
[1732473281793,0.769,3323.4,3322.9,3.00934]
[1732473282923,0.769,3323.4,3322.9,6.01868]
[1732473283132,0.769,3323.4,3323.0,3.00925]
[1732473283519,0.769,3323.4,3323.1,3.00923]
[1732473284786,0.769,3323.4,3322.9,3.00934]
[1732473285027,0.769,3323.4,3323.0,3.00931]
[1732473285780,0.769,3323.4,3322.9,3.00934]
[1732473285935,0.769,3323.4,3323.0,3.00931]
[1732473286135,0.769,3323.4,3322.9,3.00934]
[1732473286371,0.769,3323.4,3323.0,3.0093]
[1732473290082,0.1481788,3323.5,3322.7,0.7895]
[1732473290284,0.1481788,3323.5,3323.2,3.00908]
[1732473290947,0.1481788,3323.5,3323.0,3.00932]
[1732473290948,0.91153285,3323.4,3323.0,3.00932]
[1732473291142,0.91153285,3323.4,3323.1,3.00922]
[1732473291550,3.92057285,3323.4,3322.9,3.0094]
[1732473291781,0.91153285,3323.4,3323.0,3.0093]
[1732473292095,0.91153285,3323.4,3322.9,3.0094]
[1732473292096,0.91153285,3323.4,3323.1,3.00923]
[1732473293134,0.7949,3323.3,3322.8,3.00948]
[1732473293315,0.91153285,3323.1,3322.8,3.00948]
[1732473293999,0.91153285,3323.1,3322.9,3.00936]
[1732473294183,0.91153285,3323.1,3323.0,3.00932]
[1732473294387,0.91153285,3323.4,3323.0,3.00932]
[1732473294902,0.90960285,3323.4,3323.0,3.00932]
[1732473295623,0.90960285,3323.4,3322.8,3.00944]
[1732473295982,0.90960285,3323.4,3322.4,1.1197]
[1732473296189,0.90960285,3323.4,3323.1,3.00923]
[1732473297220,0.90960285,3323.4,3322.8,3.00942]
[1732473297541,0.90960285,3323.4,3322.9,3.00934]
[1732473297834,0.90960285,3323.4,3323.0,3.00932]
[1732473299905,0.90960285,3323.4,3323.1,3.00922]
[1732473300285,0.90960285,3323.4,3323.2,3.00914]
[1732473300536,0.9430788,3323.5,3323.1,3.00915]
[1732473300734,0.1481788,3323.5,3323.4,3.00896]
[1732473301406,0.1481788,3323.5,3323.2,3.00914]
[1732473301585,0.1481788,3323.5,3323.3,3.00903]
[1732473302233,0.1481788,3323.5,3323.2,3.00914]
[1732473302402,0.1481788,3323.5,3323.4,3.00896]
[1732473303288,0.1481788,3323.5,3322.9,0.7993]
[1732473303616,1.05971165,3323.5,3323.3,3.00897]
[1732473303992,1.05971165,3323.5,3323.4,3.00896]
[1732473304196,0.1481788,3323.5,3323.4,3.00896]
[1732473304940,0.1481788,3323.5,3323.1,3.0092]
[1732473305346,0.1481788,3323.5,3323.3,3.00902]
[1732473305505,0.1481788,3323.5,3323.1,3.00916]
[1732473305707,0.1481788,3323.5,3323.2,3.00913]
[1732473306130,0.1481788,3323.5,3323.3,3.00903]
[1732473306907,0.1481788,3323.5,3323.4,3.00896]
[1732473307833,0.1481788,3323.5,3323.2,3.00909]
[1732473308376,0.1481788,3323.5,3323.3,3.00905]
[1732473309126,0.1481788,3323.5,3323.4,3.00896]
[1732473310469,0.1481788,3323.5,3323.3,3.00905]
[1732473311336,0.1481788,3323.5,3323.2,3.00914]
[1732473311830,0.1481788,3323.5,3323.2,6.01821]
[1732473312252,0.1481788,3323.5,3323.3,3.009]
[1732473313176,0.1481788,3323.5,3323.4,3.00896]
[1732473313334,0.14411715,3323.5,3323.4,3.00896]
[1732473313843,0.14411715,3323.5,3323.0,3.00928]
[1732473313844,0.89681715,3323.5,3323.0,3.00928]
[1732473314037,0.91153285,3323.4,3322.9,3.00935]
[1732473314661,0.91153285,3323.4,3323.1,3.00921]
[1732473315218,0.91153285,3323.4,3322.6,3.00968]
[1732473315514,0.14411715,3323.5,3323.3,3.00905]
[1732473316076,0.14411715,3323.5,3323.4,3.00896]
[1732473318588,0.14411715,3323.5,3323.4,3.03904509]
[1732473318806,0.14411715,3323.5,3323.4,3.79024509]
[1732473319025,0.14411715,3323.5,3323.4,3.76016]
[1732473320816,0.14101613,3323.5,3323.4,3.00896]
[1732473326441,1.84674898,3323.5,3323.4,3.00896]
[1732473326937,1.05254898,3323.5,3323.4,3.00896]
[1732473328024,1.04870848,3323.5,3323.4,3.00896]
[1732473328959,0.13717563,3323.5,3323.4,3.00896]
[1732473332048,0.13717563,3323.5,3323.4,3.08843796]
[1732473332837,0.13717563,3323.5,3323.4,6.63843796]
[1732473335274,0.1323665,3323.5,3323.4,6.93893796]
[1732473337979,6.5e-06,3323.5,3323.4,7.70643796]
[1732473339067,1.66543285,3324.6,3323.5,3.30543772]
[1732473339264,1.66543285,3324.6,3324.5,3.00797]
[1732473339779,1.66543285,3324.6,3324.5,0.07638132]
[1732473339978,1.66543285,3324.6,3324.4,3.00803]
[1732473340165,0.16654328,3324.5,3324.4,3.00803]
[1732473340367,0.16654328,3324.5,3324.1,3.0083]
[1732473340703,0.16654328,3324.5,3324.3,3.00814]
[1732473340871,0.16654328,3324.5,3324.4,3.00806]
[1732473341968,0.16654328,3324.5,3324.3,3.00814]
[1732473342282,0.16654328,3324.5,3324.4,0.00493772]
[1732473342481,0.16654328,3324.5,3324.4,3.01299772]
[1732473343314,0.16654328,3324.5,3324.4,0.00493772]
[1732473344110,0.98374328,3324.5,3324.4,0.00493772]
[1732473344806,4.90324613,3324.5,3324.4,0.00493772]
[1732473345009,1.72873285,3324.5,3324.4,0.00493772]
[1732473345177,0.8172,3324.4,3324.1,0.00493772]
[1732473345382,0.91153285,3324.2,3324.1,0.00493772]
[1732473346210,1.72873285,3324.2,3324.1,0.00493772]
[1732473346374,1.72459516,3324.2,3324.1,0.00493772]
[1732473348117,1.72459516,3324.2,3323.9,3.01339772]
[1732473348329,1.89705468,3324.2,3323.9,3.01339772]
[1732473349081,1.89705468,3324.2,3323.9,0.00493772]
[1732473349826,1.89705468,3324.2,3323.9,3.01343772]
[1732473350311,1.89705468,3324.2,3324.0,0.0762527]
[1732473351108,1.89705468,3324.2,3324.1,0.00493772]
[1732473351678,1.89705468,3324.2,3324.1,0.08119042]
[1732473352075,0.8172,3324.2,3324.1,3.08952042]
[1732473352416,0.8172,3324.2,3324.1,0.08119042]
[1732473353508,0.8172,3324.2,3324.1,3.08952042]
[1732473353831,0.81180149,3324.2,3324.1,0.08119042]
[1732473354530,0.81180149,3324.2,3324.1,3.08952042]
[1732473355948,0.91153285,3324.4,3324.2,3.00822]
[1732473356117,0.91153285,3324.4,3324.3,3.00815]
[1732473356292,0.2,3325.8,3324.3,0.85893073]
[1732473356293,2.0429733,3325.4,3324.3,0.85893073]
[1732473356506,2.0429733,3325.4,3325.3,3.00724]
[1732473356813,0.20529733,3325.4,3325.3,3.08363116]
[1732473357000,0.01,3325.5,3325.4,3.00715]
[1732473357199,0.01,3325.5,3325.3,3.08363116]
[1732473357400,0.803,3325.3,3324.8,3.00766]
[1732473357644,0.91153285,3325.1,3324.7,3.00778]
[1732473360206,0.91153285,3325.1,3325.0,3.00751]
[1732473360412,1.13020326,3325.1,3324.8,3.00769]
[1732473360632,1.13020326,3325.1,3324.9,3.00754]
[1732473360838,0.803,3325.3,3325.1,3.01222218]
[1732473361353,0.97545329,3325.3,3325.1,0.00488218]
[1732473363156,0.17245329,3325.3,3325.1,3.01230218]
[1732473363511,0.17245329,3325.3,3325.1,0.00488218]
[1732473365299,0.01,3325.5,3325.2,3.0803656]
[1732473365461,0.01,3325.5,3325.4,3.00715]
[1732473365752,0.01,3325.5,3325.4,0.07298616]
[1732473365961,0.18474329,3325.5,3325.4,0.07298616]
[1732473366253,0.18474329,3325.5,3325.3,3.00722]
[1732473366454,0.01,3325.5,3325.4,0.07289223]
[1732473366856,0.01,3325.5,3325.4,3.08004223]
[1732473367060,0.01,3325.5,3325.2,3.00732]
[1732473367358,0.91153285,3325.3,3325.2,3.00732]
[1732473368024,0.9059182,3325.3,3325.2,3.00732]
[1732473368212,0.91153285,3325.3,3325.2,3.00732]
[1732473369655,0.92153285,3325.5,3325.2,3.81512]
[1732473370159,0.92153285,3325.5,3325.4,3.00715]
[1732473371158,0.92153285,3325.5,3325.1,0.00488218]